bitfinex/quotes_ETHUSD_20240828
["timestamp","ask_amount","ask_price","bid_price","bid_amount"]
[1724871415574,0.639139,2538.3,2537.6,3.94061]
[1724871415775,0.639139,2538.3,2537.8,3.94032]
[1724871415974,4.578809,2538.3,2537.8,3.94032]
[1724871416176,4.578809,2538.3,2537.6,3.94061]
[1724871416487,0.46092018,2538.8,2538.1,3.93988]
[1724871416488,4.578181,2538.7,2538.1,3.93988]
[1724871416692,6.32499,2538.8,2538.1,3.93986]
[1724871416867,2.3861,2538.8,2538.3,3.93958]
[1724871417063,3.87399837,2538.8,2537.5,2.459]
[1724871417266,3.87399837,2538.8,2538.4,0.07303843]
[1724871417267,3.93921,2538.6,2538.4,0.07303843]
[1724871417462,3.93921,2538.6,2537.4,3.94088]
[1724871417463,3.9395,2538.4,2537.9,3.94012]
[1724871417672,3.9395,2538.4,2537.7,3.94047]
[1724871417882,4.3336,2538.3,2538.0,0.07352193]
[1724871418090,0.39395,2538.3,2537.7,3.94046]
[1724871418296,0.39395,2538.3,2538.1,0.07340104]
[1724871418297,6.30279,2538.2,2538.1,0.07340104]
[1724871418479,6.30279,2538.2,2536.8,0.3951]
[1724871418480,6.30279,2538.2,2537.5,3.94076]
[1724871418692,2.363,2538.2,2537.5,3.94088]
[1724871418884,3.032662,2538.2,2537.7,3.94045]
[1724871419187,3.032662,2538.2,2537.8,4.01413374]
[1724871419389,3.032662,2538.2,2537.9,3.94015]
[1724871419390,2.363,2538.2,2537.9,3.94015]
[1724871419590,9.30213,2538.7,2538.1,3.93994]
[1724871419789,0.41266305,2538.4,2538.1,3.93994]
[1724871419990,0.41266305,2538.4,2538.2,0.07328016]
[1724871420193,0.41266305,2538.4,2538.2,4.01306016]
[1724871420396,0.41266305,2538.4,2538.2,3.93967]
[1724871420600,2.2513,2539.1,2538.3,0.15194275]
[1724871420818,2.2513,2539.1,2538.9,3.93858]
[1724871420956,0.41259785,2539.2,2538.4,3.93946]
[1724871421163,0.41259785,2539.2,2538.8,3.93872]
[1724871421391,0.41259785,2539.2,2538.5,0.70168285]
[1724871421392,4.35084785,2539.2,2538.6,3.93913]
[1724871421560,0.84768264,2539.2,2538.9,0.07243427]
[1724871421761,0.84768264,2539.2,2538.1,6.32057]
[1724871421762,3.93849,2539.1,2538.3,7.8791]
[1724871421990,3.93849,2539.1,2538.4,4.01240843]
[1724871421991,3.93865,2539.0,2538.4,4.01240843]
[1724871422162,3.93849,2539.1,2538.4,0.07303843]
[1724871422163,6.26176,2539.1,2538.4,0.07303843]
[1724871422363,3.9388,2538.9,2538.4,0.07303843]
[1724871422602,4.37370879,2539.0,2538.4,3.9394]
[1724871422757,5.00227888,2538.9,2538.5,0.07291758]
[1724871422963,5.00227888,2538.9,2538.3,3.93955]
[1724871423159,0.43510879,2539.0,2538.6,0.07279674]
[1724871423387,2.3233,2539.1,2538.6,3.93907]
[1724871423571,2.3233,2539.1,2538.7,0.07267591]
[1724871423777,6.26178,2539.1,2538.7,0.07267591]
[1724871423979,4.99990379,2539.0,2538.7,0.07267591]
[1724871424299,1.52218397,2539.0,2538.0,3.93999]
[1724871424473,8.33834018,2538.9,2538.8,0.07255509]
[1724871424674,8.33834018,2538.9,2538.1,3.93993]
[1724871424675,3.93905,2538.7,2538.1,3.93993]
[1724871425064,3.93943,2538.5,2538.2,0.07328016]
[1724871425267,2.840143,2538.4,2538.2,0.07328016]
[1724871425462,2.4462,2538.7,2537.6,0.07879579]
[1724871425670,0.638515,2538.7,2538.3,4.01233996]
[1724871426007,2.4462,2539.1,2538.5,3.93928]
[1724871426213,2.4462,2539.1,2538.7,3.93891]
[1724871426571,2.4462,2539.1,2538.8,0.07212453]
[1724871427073,2.4462,2539.1,2538.5,3.93922]
[1724871427292,2.4462,2539.1,2538.9,0.07200372]
[1724871427506,2.73207979,2539.1,2538.5,3.93922]
[1724871427701,2.73207979,2539.1,2539.0,0.07188291]
[1724871428016,2.73207979,2539.1,2539.0,0.07178546]
[1724871428370,3.19299997,2539.1,2538.5,3.93927]
[1724871428598,3.93897,2538.8,2538.2,3.93978]
[1724871428824,7.87859,2538.6,2537.9,7.88029]
[1724871429025,2.665097,2538.7,2537.8,3.94037]
[1724871429226,2.665097,2538.7,2537.6,3.94068]
[1724871429227,3.93989,2538.2,2537.6,3.94068]
[1724871429432,3.93989,2538.2,2537.5,3.94081]
[1724871429433,2.2712,2538.5,2537.5,3.94085]
[1724871429734,3.93998,2538.1,2537.5,3.94077]
[1724871430034,2.2712,2537.9,2537.3,3.94108]
[1724871430193,2.2712,2537.9,2537.5,3.94087]
[1724871430393,6.21157,2537.9,2537.3,3.94107]
[1724871430635,0.6605388,2537.8,2537.3,3.94107]
[1724871430806,8.5414988,2537.8,2537.1,7.88284]
[1724871430994,4.6009688,2537.8,2537.2,3.94122]
[1724871431195,8.5414788,2537.8,2537.2,3.94122]
[1724871431397,2.2712,2537.9,2536.7,4.336285]
[1724871431398,3.94085,2537.6,2536.9,3.94171]
[1724871432095,3.94051,2537.8,2537.0,0.07883244]
[1724871432329,3.94074,2537.6,2537.0,0.07420333]
[1724871432511,2.2712,2537.5,2537.0,0.07420333]
[1724871433226,3.94123,2537.3,2537.0,0.07420333]
[1724871433547,3.9415,2537.1,2536.4,3.94258]
[1724871433698,3.94169,2537.0,2536.4,3.94258]
[1724871433920,6.21304,2536.9,2536.5,0.0748084]
[1724871434151,6.21304,2536.9,2536.1,3.94301]
[1724871434324,6.91711563,2536.9,2536.1,3.94301]
[1724871434656,2.97527563,2536.9,2536.2,0.07517155]
[1724871434855,2.2712,2536.9,2536.2,0.07517155]
[1724871435156,3.94229,2536.6,2535.9,3.94323]
[1724871435450,3.94204,2536.8,2536.2,3.94286]
[1724871435624,2.73212018,2536.9,2536.0,0.0754137]
[1724871435825,3.94262,2536.4,2536.3,0.07505049]
[1724871436033,3.94275,2536.3,2535.8,3.94351]
[1724871436252,3.94275,2536.3,2535.7,3.9436]
[1724871436253,0.788519,2536.4,2536.3,0.07505049]
[1724871436456,7.88513,2536.5,2535.9,3.94332]
[1724871436613,7.88513,2536.5,2535.7,7.88717]
[1724871436614,4.731123,2536.4,2535.7,7.88717]
[1724871436954,6.36584,2536.2,2535.5,7.8879]
[1724871437159,3.94306,2536.1,2535.6,0.07589811]
[1724871437665,3.94306,2536.1,2534.9,3.94487]
[1724871437666,3.94422,2535.4,2535.0,0.3951]
[1724871437821,2.2777,2535.6,2534.4,3.94565]
[1724871438140,2.2777,2535.6,2535.0,3.94462]
[1724871438556,6.22154,2535.6,2535.0,3.94462]
[1724871438755,2.2777,2535.6,2535.0,3.94462]
[1724871439120,2.2777,2535.6,2535.1,3.94457]
[1724871439462,2.2777,2535.6,2535.0,3.94462]
[1724871439647,2.2777,2535.6,2535.2,3.94443]
[1724871439849,2.50547,2535.6,2535.2,3.94443]
[1724871440366,2.899196,2536.0,2535.1,0.07888927]
[1724871440575,2.2626,2536.0,2535.4,7.88809]
[1724871440866,2.2626,2536.0,2535.1,0.07888927]
[1724871440867,2.2626,2536.0,2535.7,3.94361]
[1724871441365,2.48886,2536.0,2535.7,3.94361]
[1724871441868,2.48886,2536.0,2535.5,7.88783]
[1724871442024,2.48886,2536.0,2535.5,3.94387]
[1724871442418,0.22626,2536.0,2535.7,7.88716]
[1724871442615,2.2626,2536.4,2535.7,7.88717]
[1724871442920,2.2626,2536.4,2536.0,3.94312]
[1724871443124,2.2626,2536.4,2535.6,3.94379]
[1724871443365,2.67553126,2536.8,2536.5,3.94233]
[1724871443677,9.0060468,2537.3,2536.8,3.94188]
[1724871443678,2.2626,2537.3,2536.8,3.94188]
[1724871443928,3.94093,2537.5,2536.8,3.94188]
[1724871443929,3.94073,2537.6,2537.0,3.94157]
[1724871444213,3.94073,2537.6,2534.9,2.3848]
[1724871444214,2.2626,2536.5,2534.9,2.3848]
[1724871444419,4.61520372,2536.3,2535.5,3.9439]
[1724871444623,4.61520372,2536.3,2535.0,0.23848]
[1724871444624,0.62911002,2536.2,2535.0,4.18319]
[1724871444827,7.994073,2537.5,2536.5,3.9423]
[1724871444828,3.94132,2537.3,2536.5,3.9423]
[1724871445108,5.00927672,2537.5,2536.1,3.94296]
[1724871445109,3.94222,2536.7,2536.1,3.94296]
[1724871445318,3.94238,2536.6,2535.6,2.3848]
[1724871445498,0.55861755,2536.8,2536.2,0.0720661]
[1724871445814,9.40696,2537.0,2535.6,3.94374]
[1724871445815,6.40795,2536.3,2535.6,3.94374]
[1724871445983,2.4652,2536.3,2535.6,3.94374]
[1724871446197,3.94301,2536.2,2535.6,3.94374]
[1724871446516,3.94301,2536.2,2535.4,3.94402]
[1724871446673,3.94301,2536.2,2535.6,3.94374]
[1724871446869,0.74946161,2536.2,2535.6,3.94374]
[1724871447072,2.4652,2536.3,2535.8,3.94341]
[1724871447472,6.40795,2536.3,2535.6,3.94373]
[1724871447682,2.4652,2536.3,2535.7,3.94359]
[1724871447928,3.50026,2536.3,2535.7,3.94359]
[1724871448087,3.50026,2536.3,2535.8,3.94351]
[1724871449083,4.61520372,2536.7,2535.2,3.1085949]
[1724871449084,2.3578,2536.7,2535.2,3.1085949]
[1724871449288,3.94213,2536.7,2536.0,3.9431]
[1724871449489,4.46563755,2536.8,2535.9,2.3389]
[1724871449691,4.46563755,2536.8,2536.4,3.94257]
[1724871449692,0.62999,2536.8,2536.4,3.94257]
[1724871449923,0.62999,2536.8,2535.9,2.3389]
[1724871449924,0.62999,2536.8,2536.7,3.94212]
[1724871450094,2.3578,2537.0,2536.7,3.94212]
[1724871450322,3.94143,2537.2,2536.7,3.94212]
[1724871450614,6.29891,2537.4,2536.7,3.942]
[1724871450831,3.94296,2536.2,2535.0,2.2738]
[1724871451033,3.94254,2536.5,2535.7,3.94358]
[1724871451201,3.9431,2536.1,2535.5,3.94387]
[1724871451595,4.55535408,2536.1,2535.5,3.94387]
[1724871451793,4.55535408,2536.1,2535.3,3.94429]
[1724871451794,3.94347,2535.9,2535.3,3.94417]
[1724871452026,3.94353,2535.8,2535.3,3.94417]
[1724871452636,3.94392,2535.6,2534.7,3.94515]
[1724871452804,3.94411,2535.5,2534.9,3.94481]
[1724871453318,0.68116841,2535.8,2535.3,3.94421]
[1724871453513,3.94358,2535.8,2535.2,3.94435]
[1724871453855,3.9437,2535.7,2535.2,3.94435]
[1724871454008,3.9437,2535.7,2535.0,3.94468]
[1724871454009,3.9437,2535.7,2535.3,0.0710861]
[1724871454210,4.732428,2535.7,2535.3,0.0710861]
[1724871454408,4.732428,2535.7,2534.5,3.94546]
[1724871454409,6.2378,2535.6,2534.5,3.94546]
[1724871454628,6.2378,2535.6,2534.4,3.94555]
[1724871454629,3.94471,2535.1,2534.4,3.94555]
[1724871454827,3.94471,2535.1,2534.5,3.94545]
[1724871455154,3.94471,2535.1,2534.4,3.94555]
[1724871455155,3.94493,2534.9,2534.4,3.94555]
[1724871455539,4.339181,2535.1,2534.5,3.94553]
[1724871455998,3.94477,2535.0,2534.4,7.89117]
[1724871456198,4.7731651,2535.0,2534.4,7.89117]
[1724871456432,0.8283951,2535.0,2534.4,3.94555]
[1724871456668,0.8283951,2535.0,2533.2,3.94755]
[1724871456669,2.2903,2534.2,2533.2,3.94755]
[1724871456796,2.2903,2534.2,2533.6,3.94684]
[1724871457112,2.2903,2534.2,2532.7,2.3668]
[1724871457113,3.94667,2533.8,2533.1,3.94763]
[1724871457300,3.94699,2533.6,2532.9,3.94791]
[1724871457493,3.94699,2533.6,2532.9,4.579381]
[1724871457894,3.94699,2533.6,2532.5,0.3951]
[1724871457895,6.4009,2533.6,2532.5,0.3951]
[1724871458145,6.4009,2533.6,2532.9,3.9479]
[1724871458437,6.4009,2533.6,2532.7,3.94833]
[1724871458438,6.40092,2533.6,2532.7,3.94833]
[1724871458652,6.40092,2533.6,2533.0,3.94778]
[1724871458653,7.435681,2533.6,2533.0,3.94778]
[1724871458795,2.4539,2533.6,2532.5,2.4603]
[1724871459026,5.4055,2534.0,2533.1,3.94764]
[1724871459367,5.4055,2534.0,2533.5,3.94698]
[1724871459368,2.4055,2534.0,2533.5,3.94698]
[1724871459554,7.02833346,2534.0,2533.4,3.94723]
[1724871459756,7.02833346,2534.0,2533.4,3.94716]
[1724871460074,14.4362603,2533.9,2533.2,3.94744]
[1724871460390,14.4362603,2533.9,2532.2,0.3951]
[1724871460391,6.48878681,2533.9,2532.8,3.94816]
[1724871460681,4.47125658,2533.8,2533.1,3.94771]
[1724871460823,3.0,2533.7,2533.1,7.89535]
[1724871461024,3.0,2533.7,2533.1,3.94763]
[1724871461222,3.0,2533.7,2531.6,2.2695]
[1724871461223,2.3614,2533.1,2531.6,2.2695]
[1724871461523,3.94848,2532.7,2532.0,3.94931]
[1724871461722,3.94867,2532.5,2531.8,7.89929]
[1724871461965,0.85636837,2532.7,2531.8,3.94969]
[1724871462125,4.80479837,2532.7,2531.8,0.394969]
[1724871462460,8.75319837,2532.7,2532.1,3.94918]
[1724871462666,7.89683,2532.7,2532.1,3.94918]
[1724871462876,3.94837,2532.7,2532.2,0.07081593]
[1724871463668,3.94812,2532.9,2532.3,3.94897]
[1724871463865,6.898515,2533.1,2532.3,3.94888]
[1724871464065,6.30921,2533.1,2532.4,4.01939305]
[1724871464364,2.3614,2533.1,2532.6,3.94841]
[1724871464573,2.3214,2533.1,2532.8,3.94809]
[1724871464778,2.3214,2533.1,2532.9,3.94801]
[1724871464923,6.94751,2533.3,2532.9,0.06996603]
[1724871465294,1.3429545,2533.3,2532.9,3.94803]
[1724871465564,12.50900372,2533.7,2533.1,3.9477]
[1724871465565,0.589305,2533.5,2533.1,3.9477]
[1724871465781,1.89913587,2533.5,2533.1,3.94763]
[1724871465926,1.89913587,2533.5,2533.2,0.07070376]
[1724871466123,0.589305,2533.5,2533.3,3.94739]
[1724871466355,0.589305,2533.5,2533.4,0.07046108]
[1724871466939,0.41333464,2534.1,2533.4,0.07046108]
[1724871467139,7.8942,2533.5,2533.4,0.07046108]
[1724871467469,3.94774,2533.1,2532.5,3.94857]
[1724871467653,2.4122,2533.2,2531.7,3.94987]
[1724871467654,2.4122,2533.2,2531.9,6.94949]
[1724871467836,3.001745,2533.2,2532.7,3.94834]
[1724871468027,3.001745,2533.2,2532.8,3.94807]
[1724871468222,3.001745,2533.2,2532.8,4.0196986]
[1724871468480,3.0,2533.5,2533.0,3.94785]
[1724871468767,0.589545,2533.1,2532.8,0.0716286]
[1724871469084,7.536885,2533.4,2532.7,3.94826]
[1724871469371,3.94751,2533.3,2532.9,0.07150721]
[1724871469574,8.29599161,2533.4,2532.8,0.0716286]
[1724871469868,0.589545,2533.3,2532.9,3.94802]
[1724871470165,3.0,2533.5,2532.9,3.94795]
[1724871470352,3.0,2533.5,2533.1,3.94772]
[1724871470735,3.0,2533.5,2533.2,0.07114311]
[1724871471070,3.589545,2533.5,2533.2,0.07114311]
[1724871471429,0.589545,2533.5,2532.9,3.94798]
[1724871471630,3.0,2533.8,2533.3,7.96564177]
[1724871471877,0.41333464,2534.1,2533.4,0.07894695]
[1724871472026,2.2864,2534.5,2533.4,0.07894695]
[1724871472027,2.2864,2534.5,2534.0,7.89264]
[1724871472385,2.2864,2534.5,2534.0,3.94632]
[1724871472527,0.41332862,2534.7,2532.5,3.94855]
[1724871472528,2.3599,2533.4,2532.5,3.94855]
[1724871472732,3.94829,2532.8,2532.2,3.94903]
[1724871472961,3.94829,2532.8,2531.8,2.3465]
[1724871472962,4.61727095,2532.8,2532.1,3.94914]
[1724871473174,0.66898095,2532.7,2532.3,3.94886]
[1724871473326,3.94765,2533.2,2532.5,3.94853]
[1724871473527,3.0,2533.1,2532.1,4.344104]
[1724871473727,3.0,2533.1,2530.3,3.95204]
[1724871473728,3.94871,2532.5,2531.9,7.899]
[1724871474034,3.94871,2532.5,2531.9,3.9495]
[1724871474647,3.94842,2532.7,2531.6,3.95]
[1724871474883,3.0,2532.6,2532.2,3.94903]
[1724871475050,6.27814,2532.9,2532.2,7.89803]
[1724871475259,3.75839988,2532.8,2532.5,3.94861]
[1724871475451,2.33,2532.9,2532.3,3.94885]
[1724871475655,0.56954354,2532.8,2532.3,3.94885]
[1724871476162,0.56954354,2532.8,2532.3,7.89773]
[1724871476365,2.33,2532.9,2532.5,3.94854]
[1724871476948,9.1998,2533.3,2532.7,3.94823]
[1724871477262,3.0,2533.2,2532.7,3.94823]
[1724871477590,6.1998,2533.3,2532.2,3.9491]
[1724871477591,2.2523,2533.3,2532.9,3.94794]
[1724871478294,6.20715,2532.0,2531.3,3.95044]
[1724871478602,2.2576,2532.0,2530.0,3.95245]
[1724871478819,3.95056,2531.3,2530.7,3.95137]
[1724871478951,3.95031,2531.5,2530.8,3.95121]
[1724871479160,2.4981,2531.8,2531.3,3.95038]
[1724871479560,3.94886,2532.4,2531.7,3.94982]
[1724871479561,3.94907,2532.3,2531.7,3.94982]
[1724871479799,10.39585,2532.4,2531.8,3.94963]
[1724871480011,2.4981,2532.4,2531.9,3.9496]
[1724871480191,9.44693,2532.4,2531.8,3.94962]
[1724871480503,3.94944,2532.0,2531.9,0.05726918]
[1724871481012,3.94915,2532.2,2531.9,0.05724886]
[1724871481172,5.4981,2532.4,2531.9,4.00673886]
[1724871481364,2.4981,2532.4,2531.9,4.00673886]
[1724871481780,3.94944,2532.0,2531.9,0.05724886]
[1724871482019,3.94986,2531.8,2531.6,2.9251]
[1724871482217,7.89982,2531.7,2531.6,2.9251]
[1724871482540,11.61495605,2531.7,2531.6,2.9251]
[1724871482673,23.18006977,2531.7,2531.6,2.9251]
[1724871482882,27.73277355,2531.7,2531.6,2.9251]
[1724871483181,3.95163,2530.6,2529.9,3.95266]
[1724871483410,3.95163,2530.6,2530.0,3.95246]
[1724871483590,6.3473,2530.8,2530.0,3.95246]
[1724871483591,6.3473,2530.8,2530.1,3.95236]
[1724871483806,2.3959,2531.1,2530.2,2.3776]
[1724871483988,4.61520372,2531.8,2530.5,3.95164]
[1724871483989,2.3959,2531.5,2530.5,3.95164]
[1724871484314,2.3959,2531.5,2530.2,2.3776]
[1724871484315,3.94968,2531.9,2531.1,3.95075]
[1724871484514,3.95,2531.7,2531.1,3.95075]
[1724871484702,3.95,2531.7,2530.9,7.90214]
[1724871484875,0.55923095,2531.7,2530.7,3.95138]
[1724871485081,3.95029,2531.5,2530.7,3.95138]
[1724871485275,2.3488,2531.9,2530.7,3.95138]
[1724871485276,3.95,2531.7,2531.0,3.95091]
[1724871485529,6.29847,2531.9,2530.8,0.07902328]
[1724871485530,6.29847,2531.9,2531.2,3.95059]
[1724871485680,2.3488,2531.9,2531.2,3.95069]
[1724871485882,2.3488,2531.9,2531.5,3.9502]
[1724871486100,2.4629,2532.3,2531.9,3.9495]
[1724871486580,2.4707,2532.6,2532.3,3.94891]
[1724871486780,2.3181,2533.0,2532.6,3.94851]
[1724871487010,6.2656,2533.3,2532.6,3.94839]
[1724871487207,6.2656,2533.3,2532.8,3.94815]
[1724871487409,2.3181,2533.3,2533.0,3.94777]
[1724871487739,2.3181,2533.3,2532.2,6.21777]
[1724871487740,3.2333001,2533.7,2533.2,3.94755]
[1724871488223,3.94653,2533.9,2533.2,3.94746]
[1724871488380,6.76603762,2534.1,2533.2,3.94746]
[1724871488587,6.65607467,2534.1,2533.4,7.89441]
[1724871488786,6.65607467,2534.1,2533.5,3.94709]
[1724871489011,6.65607467,2534.1,2533.4,3.94717]
[1724871489012,2.70983467,2534.1,2533.6,3.94684]
[1724871489230,2.70983467,2534.1,2533.6,7.89367]
[1724871489389,2.70983467,2534.1,2533.6,3.94683]
[1724871490598,6.242,2534.5,2533.8,3.94653]
[1724871491003,7.17875134,2534.5,2533.8,3.94653]
[1724871491529,7.17875134,2534.5,2533.9,3.94646]
[1724871491831,3.94482,2535.0,2533.9,0.07892881]
[1724871491832,3.94495,2534.9,2533.9,0.07892881]
[1724871492003,2.4336,2535.0,2534.5,3.94555]
[1724871492208,2.4336,2535.0,2534.0,0.0546106]
[1724871492423,0.41329955,2535.1,2534.5,3.94554]
[1724871493031,0.41329955,2535.1,2534.6,0.05388312]
[1724871493389,3.94433,2535.3,2534.7,3.9451]
[1724871493836,3.94433,2535.3,2534.8,0.0536407]
[1724871493995,3.94472,2535.1,2534.8,0.0536407]
[1724871494510,3.94472,2535.1,2534.9,0.0535195]
[1724871494713,0.52339762,2535.2,2534.5,3.94544]
[1724871494942,3.94449,2535.2,2535.0,0.05339832]
[1724871495244,3.94436,2535.3,2534.7,3.94523]
[1724871495445,3.94436,2535.3,2535.1,0.0521322]
[1724871495649,3.94446,2535.2,2534.5,3.94544]
[1724871495951,3.94446,2535.2,2534.6,3.94537]
[1724871496815,10.55933916,2535.4,2534.7,3.94522]
[1724871497019,6.61508916,2535.4,2534.7,3.94522]
[1724871497729,6.61508916,2535.4,2534.7,3.94511]
[1724871497949,10.24732,2535.8,2535.1,3.94451]
[1724871498148,6.71681311,2535.8,2535.0,3.94474]
[1724871498450,3.94393,2535.6,2535.0,3.94474]
[1724871498655,3.94393,2535.6,2535.0,7.88942]
[1724871498954,3.94393,2535.6,2535.0,3.94468]
[1724871499327,6.71683311,2535.8,2534.6,0.07889107]
[1724871499512,6.71683311,2535.8,2535.2,3.94435]
[1724871500142,6.71683311,2535.8,2535.2,7.88871]
[1724871500370,6.71683311,2535.8,2535.3,3.9443]
[1724871500571,9.08143134,2536.3,2535.5,3.94387]
[1724871500572,10.23472,2536.2,2535.5,3.94387]
[1724871500775,6.29167,2536.2,2535.5,3.94387]
[1724871501456,3.94309,2536.1,2535.5,3.94386]
[1724871501658,3.94346,2535.9,2535.3,3.94422]
[1724871501871,3.94346,2535.9,2535.1,3.94455]
[1724871501872,3.94379,2535.7,2535.1,3.94455]
[1724871502051,3.94378,2535.7,2535.1,3.94455]
[1724871502236,3.94384,2535.6,2534.9,7.88971]
[1724871502566,3.94378,2535.7,2534.9,3.94482]
[1724871502875,7.88758,2535.7,2535.1,3.94461]
[1724871503029,3.94388,2535.6,2534.9,7.8896]
[1724871503233,3.94388,2535.6,2535.0,3.94472]
[1724871503473,3.94378,2535.7,2535.1,3.94461]
[1724871503653,3.94378,2535.7,2535.1,3.94452]
[1724871504034,7.88761,2535.7,2535.1,3.94452]
[1724871504291,2.4038,2535.6,2535.1,3.94452]
[1724871505132,3.94346,2535.9,2534.8,7.41]
[1724871505434,2.3852,2536.0,2535.7,3.94363]
[1724871505665,3.94299,2536.2,2535.6,3.94382]
[1724871505973,7.88621,2536.1,2535.4,3.94402]
[1724871506137,3.94321,2536.0,2535.4,3.94402]
[1724871506479,2.79409762,2535.9,2534.8,7.41]
[1724871506661,3.94396,2535.6,2535.1,3.94459]
[1724871507170,3.94396,2535.6,2535.2,0.05082235]
[1724871507371,3.94392,2535.6,2535.2,0.05082235]
[1724871507938,3.94399,2535.5,2535.3,0.05070119]
[1724871508275,3.94481,2535.0,2534.3,5.29]
[1724871508477,3.9452,2534.8,2534.3,5.29]
[1724871508651,3.9452,2534.8,2534.2,3.94589]
[1724871508835,7.88972,2535.0,2534.3,3.94585]
[1724871509035,6.30371,2535.4,2534.1,5.29]
[1724871509286,3.94448,2535.2,2534.5,3.94543]
[1724871509873,10.24795,2535.4,2534.7,3.94514]
[1724871510081,3.94435,2535.3,2534.7,3.94514]
[1724871510262,2.3595,2535.4,2534.9,3.94488]
[1724871510436,6.30366,2535.4,2534.7,3.94511]
[1724871510976,2.3595,2535.4,2534.9,3.94492]
[1724871511161,2.3595,2535.4,2534.7,3.94511]
[1724871511485,2.344,2535.7,2535.1,3.94449]
[1724871512387,4.46668762,2536.0,2534.7,0.923511]
[1724871512682,2.4045,2536.0,2535.4,3.94411]
[1724871512852,2.4045,2536.0,2535.4,3.94402]
[1724871513181,3.94331,2536.0,2535.2,5.29]
[1724871513476,0.52339762,2535.9,2535.3,3.94426]
[1724871513850,4.46636762,2536.2,2535.3,3.94426]
[1724871514047,3.94315,2536.1,2535.3,3.94426]
[1724871514272,3.94324,2536.0,2535.2,5.29]
[1724871514452,7.01970372,2536.4,2535.2,5.29]
[1724871514453,3.94365,2535.8,2535.2,5.29]
[1724871514641,0.52339762,2535.9,2535.2,5.29]
[1724871514839,4.46686762,2535.9,2535.2,5.29]
[1724871515039,7.88721,2535.8,2535.2,5.29]
[1724871515282,10.36781,2535.8,2535.2,5.29]
[1724871515462,3.94385,2535.6,2535.2,5.29]
[1724871515707,0.52339762,2535.7,2535.3,0.04745492]
[1724871516037,3.94438,2535.3,2534.8,5.29]
[1724871516186,3.94415,2535.4,2534.6,17.47]
[1724871516378,4.46728762,2535.6,2534.7,3.94522]
[1724871516582,8.41125762,2535.6,2534.7,3.94522]
[1724871516899,0.41314249,2535.7,2534.7,2.7201642]
[1724871517417,0.41314249,2535.7,2534.9,3.94481]
[1724871517418,4.35684249,2535.7,2534.9,3.94481]
[1724871517610,0.41314249,2535.7,2534.9,3.94481]
[1724871517929,0.41314249,2535.7,2535.1,3.94459]
[1724871518285,0.52339762,2536.1,2535.1,0.78894]
[1724871518605,2.4979,2536.2,2535.5,3.9439]
[1724871519368,2.4979,2536.2,2535.6,3.94374]
[1724871519570,0.41307687,2536.3,2535.7,3.94359]
[1724871519779,0.41307687,2536.3,2535.8,3.94351]
[1724871519929,2.4979,2536.6,2536.0,3.94321]
[1724871520134,6.44021,2536.6,2535.8,4.02237061]
[1724871520477,6.44021,2536.6,2535.9,3.94327]
[1724871520636,2.4979,2536.6,2536.0,3.94318]
[1724871520833,2.4979,2536.6,2535.8,9.31229005]
[1724871520834,2.4979,2536.6,2535.9,4.02221878]
[1724871521058,2.4979,2536.6,2536.0,3.94319]
[1724871521382,2.4979,2536.6,2536.0,7.88622]
[1724871521550,2.4979,2536.6,2536.0,3.94311]
[1724871522131,2.4979,2536.6,2536.1,0.04648602]
[1724871522335,4.35505016,2536.8,2536.1,0.04648602]
[1724871522562,4.35505016,2536.8,2536.1,3.98953602]
[1724871523190,0.41299016,2536.8,2536.2,3.94282]
[1724871523393,2.2663,2537.0,2536.2,3.94282]
[1724871523546,6.73145762,2537.0,2536.3,0.04624389]
[1724871523980,6.73145762,2537.0,2536.3,3.98898389]
[1724871524251,3.94236,2536.6,2536.3,0.04624389]
[1724871524446,0.52339762,2536.5,2536.3,0.04624389]
[1724871524649,0.52339762,2536.5,2535.7,3.94359]
[1724871524650,4.46584762,2536.5,2536.4,0.04366538]
[1724871524852,4.46584762,2536.5,2535.7,3.94359]
[1724871525089,0.52339762,2536.5,2535.7,5.261343]
[1724871525297,3.94233,2536.6,2535.8,3.99100267]
[1724871525606,3.94246,2536.5,2535.8,3.99100267]
[1724871526649,3.94233,2536.6,2535.8,3.99100267]
[1724871526650,3.9426,2536.4,2535.8,0.04756267]
[1724871526849,3.94233,2536.6,2535.8,3.99104267]
[1724871527047,3.94233,2536.6,2535.8,4.54018982]
[1724871527289,7.88413,2536.8,2535.9,3.94334]
[1724871527499,3.94206,2536.8,2536.1,3.94305]
[1724871528008,3.94206,2536.8,2536.2,0.04704374]
[1724871528232,3.94206,2536.8,2536.2,3.98992374]
[1724871528528,2.2663,2536.9,2536.3,3.94273]
[1724871528672,2.2663,2536.9,2536.3,3.94265]
[1724871528870,0.41292063,2537.2,2536.4,7.42860372]
[1724871529075,2.3908,2538.7,2536.4,7.42860372]
[1724871529076,3.93988,2538.2,2537.3,3.94105]
[1724871529275,3.93981,2538.2,2537.3,3.94105]
[1724871529830,3.93976,2538.3,2537.4,0.05306925]
[1724871530121,3.93982,2538.2,2537.4,0.05306925]
[1724871530411,2.3908,2538.1,2537.4,0.05306925]
[1724871530810,3.94078,2537.6,2536.9,3.94173]
[1724871530972,3.94078,2537.6,2536.9,7.88346]
[1724871531173,6.94015,2538.0,2537.0,0.06006698]
[1724871531374,3.0,2537.9,2537.0,4.00168698]
[1724871531612,3.94066,2537.7,2537.1,3.94149]
[1724871531784,6.94034,2537.9,2537.2,3.94134]
[1724871531984,6.94034,2537.9,2537.2,3.94126]
[1724871532222,3.94034,2537.9,2537.3,0.05952259]
[1724871532520,2.3908,2538.1,2537.3,0.05952259]
[1724871532693,3.94068,2537.7,2537.3,0.05952259]
[1724871532870,3.94068,2537.7,2537.4,0.05934116]
[1724871533072,7.88073,2537.9,2537.1,3.94149]